[Event "29th Bosnjaci Open 2025"]
[Site "Bosnjaci"]
[Date "2025.01.06"]
[Round "6.13"]
[White "Vucenovic, Damian"]
[Black "Ljubicic, Mario"]
[Result "1-0"]
[ECO "C54"]
[WhiteElo "2272"]
[BlackElo "2115"]
[Annotator "TA"]
[PlyCount "145"]
[EventDate "2025.01.04"]
[EventType "swiss"]
[EventCountry "CRO"]
[SourceTitle "playchess.com"]
[Source "ChessBase"]
[SourceQuality "1"]
[TimeControl "5400+30"]

{[%evp 51,145,-7,-18,-27,0,0,0,0,12,-59,-25,-27,-24,-27,0,-7,3,0,0,0,0,-23,-29,-93,-112,-137,-133,-128,-136,-100,-8,-27,-26,-22,46,-22,732,728,1377,649,1280,1232,5664,5575,2397,1323,6027,5583,5129,580,4622,0,4678,5575,4682,4699,4698,3811,3832,3062,2551,1597,4133,2983,29953,29954,29965,29966,29974,29975,29963,29964,29975,29970,29966,29970,29970,29971,29971,29972,29979,29970,29967,12796,29976,29977,29980,29980,29981,29982,29984,29985,29985,29984,29986,29987]} 1. e4 {[%emt 0:00:04]} e5 {[%emt 0:01:29]} 2. Nf3 {[%emt 0:00:18]} Nc6 {[%emt 0:00:16]} 3. Bc4 {[%emt 0:00:17]} Nf6 {[%emt 0:00:11]} 4. d3 {[%emt 0:00:21]} Bc5 {[%emt 0:00:40]} 5. c3 {[%emt 0:00:16]} a6 {[%emt 0:01:04]} 6. Be3 {[%emt 0:01:05]} Ba7 {[%emt 0:01:01]} 7. Nbd2 {[%emt 0:00:30]} O-O {[%emt 0:02:22]} 8. O-O {[%emt 0:00:42]} d6 {[%emt 0:00:45]} 9. Bb3 {[%emt 0:00:32]} h6 {[%emt 0:05:34]} 10. Re1 {[%emt 0:01:15]} Re8 {[%emt 0:00:52]} 11. Nf1 {[%emt 0:00:30]} Be6 {[%emt 0:01:42]} 12. Ng3 {[%emt 0:02:34]} Qd7 {[%emt 0:11:04]} 13. Qc2 {[%emt 0:06:29]} b5 {[%emt 0:09:31]} 14. a4 {[%emt 0:01:44]} Bxe3 {[%emt 0:05:14]} 15. fxe3 {[%emt 0:01:36]} Ne7 {[%emt 0:00:37]} 16. d4 {[%emt 0:04:33]} Bxb3 {[%emt 0:03:10]} 17. Qxb3 {[%emt 0:00:08]} Ng6 {[%emt 0:03:50]} 18. c4 {[%emt 0:05:25]} bxa4 {[%emt 0:08:07]} 19. Qxa4 {[%emt 0:01:24]} Qg4 {[%emt 0:00:45]} 20. Nd2 {[%emt 0:10:13]} exd4 {[%emt 0:07:15]} 21. exd4 {[%emt 0:00:23]} Nf4 {[%emt 0:00:25]} 22. Qd1 {[%emt 0:04:32]} Nd3 {[%emt 0:02:08]} 23. Qxg4 {[%emt 0:00:57]} Nxg4 {[%emt 0:00:04]} 24. Reb1 {[%emt 0:01:14]} Reb8 {[%emt 0:02:34]} 25. b3 {[%emt 0:01:28]} Ne3 {[%emt 0:03:56]} 26. Ra2 {[%emt 0:02:20]} Nb4 {[%emt 0:01:03]} 27. Ra4 {[%emt 0:00:21]} Nec2 {[%emt 0:02:19]} 28. Nf3 {[%emt 0:02:21]} Rb6 {[%emt 0:03:17]} 29. Kf2 {[%emt 0:03:06]} Re8 {[%emt 0:00:57]} 30. Ke2 {[%emt 0:03:27]} (30. Rd1 $11) 30... c5 {[%emt 0:04:48]} (30... f5 $5 31. Nxf5 Rxe4+ 32. Kd2 Rf4 $17) 31. dxc5 {[%emt 0:06:34]} dxc5 {[%emt 0:00:08]} 32. Ra5 $1 {[%emt 0:00:14]} Rc6 {[%emt 0:03:01]} 33. Rd1 {[%emt 0:00:48]} Rc7 {[%emt 0:02:49]} 34. Rd6 {[%emt 0:01:59]} f5 {[%emt 0:02:00]} 35. e5 {[%emt 0:02:41]} Nc6 $1 {[%emt 0:00:30]} 36. Rxa6 {[%emt 0:06:11]} (36. Rxc5 N6d4+ 37. Kd3 Rxc5 $17) (36. Rxc6 $5 Rxc6 37. Nxf5 $15) 36... Nxe5 {[%emt 0:02:09]} 37. Kd2 {[%emt 0:08:50]} (37. Nxe5 $11 Rxe5+ 38. Kf2) 37... Nxf3+ $1 $17 {[%emt 0:00:53]} 38. gxf3 {[%emt 0:00:04]} Nd4 {[%emt 0:01:46]} 39. Rxd4 {[%emt 0:00:45]} cxd4 {[%emt 0:00:02]} 40. Nxf5 {[%emt 0:00:07] [#]} Rf7 {[%emt 0:04:22]} ({Black should try} 40... Re5 $1 $17 {[%cal Re5f5]} 41. Nd6 Kh7) 41. Ra5 {[%emt 0:02:05]} (41. Nxd4 $2 Rd7 42. Kc3 (42. Kd3 $2 Red8 $19) 42... Re3+ 43. Kd2 Rxb3 $19 (43... Rxd4+ $2 {is the wrong capture.} 44. Kxe3 Rh4 45. c5 $18)) (41. Nd6 {feels hotter.} Rf6 42. c5 Re3 43. c6) 41... Rb8 {[%emt 0:03:10]} 42. Nxd4 {[%emt 0:00:49]} Rf4 {[%emt 0:01:43]} (42... Rd8 $11 43. Kc3 Rf4) 43. Kc3 {[%emt 0:02:23] [#]} ({White should try} 43. Ke3 $14 Rh4 44. Rd5) 43... Rxd4 $4 {[%emt 0:01:17][%mdl 8192]} (43... Rd8 $1 $11 44. Rd5 Rxd5 45. cxd5 Kf7) 44. Kxd4 $18 {[%emt 0:00:11]} Rxb3 {[%emt 0:00:04]} 45. Rf5 {[%emt 0:01:55]} (45. Re5 $142 Rxf3 46. c5) 45... g6 {[%emt 0:00:07]} 46. Rf4 {[%emt 0:00:04]} Kg7 {[%emt 0:01:17]} 47. c5 {[%emt 0:00:25]} g5 {[%emt 0:00:20]} 48. Rf5 {[%emt 0:01:25]} Rb4+ {[%emt 0:01:12]} 49. Kd5 {[%emt 0:00:20]} Kg6 {[%emt 0:00:23]} 50. Rf8 {[%emt 0:00:15]} (50. Re5 $142 Rb2 51. Kd6) 50... Kg7 {[%emt 0:00:14]} 51. Rf5 {[%emt 0:00:45]} Kg6 $1 {[%emt 0:00:03]} 52. Re5 {[%emt 0:00:04]} Kf6 {[%emt 0:00:49]} 53. Re6+ {[%emt 0:00:11]} Kf7 {[%emt 0:00:04]} 54. Rxh6 {[%emt 0:00:22]} Ke7 {[%emt 0:00:17]} 55. Rh7+ {[%emt 0:00:19]} Kd8 {[%emt 0:00:25]} 56. Rg7 {[%emt 0:04:50]} Rf4 {[%emt 0:00:16]} 57. Rxg5 {[%emt 0:00:20]} Rxf3 {[%emt 0:00:09]} 58. h4 {[%emt 0:00:41]} Rf6 {[%emt 0:00:21]} 59. Rg8+ {[%emt 0:00:30]} Kd7 {[%emt 0:01:22]} 60. c6+ {[%emt 0:03:46]} Kc7 {[%emt 0:00:01]} 61. Rg7+ {[%emt 0:00:08]} Kc8 {[%emt 0:00:33]} 62. Kc5 {[%emt 0:01:56]} Rf1 {[%emt 0:01:31]} 63. h5 {[%emt 0:00:32]} Rc1+ {[%emt 0:01:00]} 64. Kd6 {[%emt 0:00:04]} Rd1+ {[%emt 0:00:13]} 65. Ke6 {[%emt 0:00:11]} Rc1 {[%emt 0:00:36]} 66. c7 {[%emt 0:00:31]} Rh1 {[%emt 0:00:35]} 67. Rh7 {[%emt 0:00:18]} (67. Rg5 $142 Kxc7 68. Kf7 Kd6 69. Kg7 Re1 70. h6 Re7+ 71. Kf8 Rb7 72. Rh5 Rb8+ 73. Kg7) 67... Rh2 {[%emt 0:00:35]} 68. Kf6 {[%emt 0:00:16]} Rc2 {[%emt 0:00:40]} 69. Re7 {[%emt 0:00:15]} Rc6+ {[%emt 0:00:30]} 70. Kg7 {[%emt 0:00:07]} Rc5 {[%emt 0:00:08]} 71. h6 {[%emt 0:00:08]} Rg5+ {[%emt 0:00:14]} 72. Kf6 {[%emt 0:00:05]} Rh5 {[%emt 0:00:04]} 73. h7 {[%emt 0:00:06]} 1-0

[Event "29th Bosnjaci Open 2025"]
[Site "Bosnjaci"]
[Date "2025.01.06"]
[Round "6.14"]
[White "Sipic, Hrvoje"]
[Black "Kejzar, Petra"]
[Result "1-0"]
[ECO "B30"]
[WhiteElo "2213"]
[BlackElo "2040"]
[Annotator "TA"]
[PlyCount "121"]
[EventDate "2025.01.04"]
[EventType "swiss"]
[EventCountry "CRO"]
[SourceTitle "playchess.com"]
[Source "ChessBase"]
[SourceQuality "1"]
[TimeControl "5400+30"]

{[%evp 19,121,14,31,26,39,0,0,0,30,0,0,0,0,0,15,16,22,15,20,20,31,0,19,12,15,6,12,6,8,0,5,0,0,-13,-16,-19,0,0,7,10,17,0,27,0,-9,-18,-18,-14,-8,-30,0,-38,0,-6,13,0,0,0,0,0,-4,-62,-1,-12,0,-13,-14,-14,0,0,0,-19,0,0,0,-16,89,95,515,507,792,772,1917,1767,1425,1320,29964,29968,29971,29972,29972,29973,29973,29974,29973,29974,29973,29974,29982,29983,29988,29989,29988,29989]} 1. e4 {[%emt 0:00:23]} c5 {[%emt 0:00:05]} 2. Nf3 {[%emt 0:00:10]} Nc6 {[%emt 0:00:20]} 3. Bb5 {[%emt 0:00:17]} e6 {[%emt 0:00:15]} 4. O-O {[%emt 0:00:37]} Nge7 {[%emt 0:00:18]} 5. Re1 {[%emt 0:00:46]} b6 {[%emt 0:00:32]} 6. c3 {[%emt 0:01:27]} a6 {[%emt 0:00:14]} 7. Bf1 {[%emt 0:01:18]} d5 {[%emt 0:12:05]} 8. exd5 {[%emt 0:08:39]} Nxd5 {[%emt 0:00:35]} 9. d4 {[%emt 0:00:32]} cxd4 {[%emt 0:00:45]} 10. Nxd4 {[%emt 0:01:22]} Nxd4 {[%emt 0:00:44]} 11. Qxd4 {[%emt 0:02:10]} Bb7 {[%emt 0:19:32]} 12. c4 {[%emt 0:08:51]} Nf6 {[%emt 0:07:34]} 13. Be3 {[%emt 0:04:21]} Bc5 {[%emt 0:00:15]} 14. Qxd8+ {[%emt 0:00:56]} Rxd8 {[%emt 0:00:02]} 15. Bxc5 {[%emt 0:00:24]} bxc5 {[%emt 0:00:01]} 16. Nc3 {[%emt 0:01:21]} O-O {[%emt 0:00:34]} 17. Na4 {[%emt 0:03:42]} Nd7 {[%emt 0:03:32]} 18. b3 {[%emt 0:05:40]} Bc6 {[%emt 0:00:25]} 19. Nb2 {[%emt 0:00:34]} a5 {[%emt 0:02:27]} 20. Nd3 {[%emt 0:02:18]} Ba8 {[%emt 0:05:01]} 21. f3 {[%emt 0:07:09]} Rfe8 {[%emt 0:00:32]} 22. Rad1 {[%emt 0:02:15]} Kf8 {[%emt 0:00:58]} 23. Kf2 {[%emt 0:00:45]} Rc8 {[%emt 0:03:46]} 24. Nf4 {[%emt 0:06:04]} Rc7 {[%emt 0:01:13]} 25. Rd6 {[%emt 0:03:58]} Ra7 {[%emt 0:00:50]} 26. Red1 {[%emt 0:01:12]} Ke7 {[%emt 0:01:25]} 27. Ne2 {[%emt 0:04:11]} Rb8 {[%emt 0:08:09]} ({Weaker is} 27... Bd5 28. Rxd7+ Rxd7 29. cxd5 Rxd5 30. Nc3 Rxd1 31. Nxd1 $16) 28. Nc3 {[%emt 0:01:22]} Rb6 {[%emt 0:00:33]} 29. Nb5 {[%emt 0:01:54]} Rab7 $1 {[%emt 0:04:55]} 30. R6d2 {[%emt 0:04:11]} Ne5 {[%emt 0:05:51]} 31. Nd6 {[%emt 0:05:05]} (31. f4 $5 Ng4+ $8 32. Kg1 $11) 31... Rb8 {[%emt 0:00:37]} 32. Be2 {[%emt 0:03:51]} g5 {[%emt 0:01:50]} 33. Nb5 {[%emt 0:03:07]} Bc6 {[%emt 0:00:39]} 34. g3 {[%emt 0:01:47]} h6 {[%emt 0:00:26]} 35. Ke3 {[%emt 0:00:54]} Be8 {[%emt 0:01:49]} 36. f4 {[%emt 0:01:30]} Nc6 {[%emt 0:01:14]} (36... gxf4+ 37. gxf4 Ng6 38. Bd3 Nh4) 37. Bf3 {[%emt 0:02:58]} (37. Rg1 {simplifies} a4 38. bxa4 Nd4 39. Bd1) 37... Rd8 {[%emt 0:04:28]} 38. Bxc6 {[%emt 0:02:06]} Rxd2 {[%emt 0:00:24]} 39. Rxd2 {[%emt 0:00:18]} Bxc6 {[%emt 0:00:42]} 40. Rd6 {[%emt 0:03:56]} (40. Nc3 $11) 40... Ra6 {[%emt 0:02:29]} (40... gxf4+ $15 41. gxf4 (41. Kxf4 a4 $17) 41... a4 42. bxa4 Ra6) 41. Rd2 $11 {[%emt 0:01:04]} a4 {[%emt 0:00:34]} 42. Nc3 {[%emt 0:00:53]} axb3 {[%emt 0:01:36]} 43. axb3 {[%emt 0:00:04]} Rb6 {[%emt 0:03:03]} 44. Rb2 {[%emt 0:00:35]} f5 {[%emt 0:01:25]} 45. Na2 {[%emt 0:01:12]} Be4 {[%emt 0:01:36]} 46. b4 {[%emt 0:01:55]} cxb4 {[%emt 0:00:10]} 47. Rxb4 {[%emt 0:00:27]} Rxb4 {[%emt 0:00:37]} (47... gxf4+ $11 48. gxf4 Rd6) 48. Nxb4 $16 {[%emt 0:00:05]} Kf6 $2 {[%emt 0:04:16][%mdl 8192] [#]} (48... e5 $16) 49. Kd4 $1 $18 {[%emt 0:00:25]} Bb7 {[%emt 0:00:34]} (49... gxf4 $142 50. gxf4 Ke7) 50. Nd3 $18 {[%emt 0:00:58]} h5 {[%emt 0:02:05]} 51. Ne5 {[%emt 0:00:53]} h4 {[%emt 0:00:31]} 52. Kc5 {[%emt 0:01:00]} hxg3 {[%emt 0:00:29]} 53. hxg3 {[%emt 0:00:05]} gxf4 {[%emt 0:00:35]} 54. gxf4 {[%emt 0:00:11]} Ke7 {[%emt 0:00:29]} 55. Kb6 {[%emt 0:01:06]} Bc8 {[%emt 0:01:16]} 56. Kc7 {[%emt 0:00:49]} Ba6 {[%emt 0:00:09]} 57. c5 {[%emt 0:00:27]} Bb5 {[%emt 0:00:18]} 58. Kb6 {[%emt 0:00:42]} Be8 {[%emt 0:00:51]} 59. c6 {[%emt 0:00:20]} Kd8 {[%emt 0:00:11]} 60. c7+ {[%emt 0:00:56]} Kc8 {[%emt 0:00:09]} 61. Nc6 {[%emt 0:00:51]} 1-0

[Event "29th Bosnjaci Open 2025"]
[Site "Bosnjaci"]
[Date "2025.01.06"]
[Round "6.15"]
[White "Pirvulescu, Ekaterina"]
[Black "Glavas, Dragan"]
[Result "0-1"]
[ECO "C18"]
[WhiteElo "2043"]
[BlackElo "2251"]
[Annotator "TA"]
[PlyCount "122"]
[EventDate "2025.01.04"]
[EventType "swiss"]
[EventCountry "CRO"]
[SourceTitle "playchess.com"]
[Source "ChessBase"]
[SourceQuality "1"]
[TimeControl "5400+30"]

{[%evp 14,122,54,35,39,23,18,0,0,0,21,0,20,-17,-20,-55,-42,-67,-61,-68,-10,-22,-13,-37,10,14,16,0,48,25,43,31,47,58,75,32,50,0,0,0,0,0,0,0,0,0,0,0,0,0,0,0,0,0,0,0,0,-19,-19,-19,-19,-19,-19,-19,-19,-19,-19,-61,-61,-61,-61,-61,-61,-61,-61,-61,-61,-61,-61,-61,-61,-61,-61,-61,-61,-61,0,-61,-61,-61,-61,-61,-61,-61,-61,-8,-8,-8,-8,-8,0,0,0,0,0,0,0,0,0,0,0]} 1. e4 {[%emt 0:00:01]} e6 {[%emt 0:00:10]} 2. d4 {[%emt 0:00:04]} d5 {[%emt 0:00:07]} 3. Nc3 {[%emt 0:00:05]} Bb4 {[%emt 0:00:09]} 4. e5 {[%emt 0:00:06]} c5 {[%emt 0:00:07]} 5. a3 {[%emt 0:00:10]} Bxc3+ {[%emt 0:00:08]} 6. bxc3 {[%emt 0:00:03]} Nc6 {[%emt 0:00:20]} 7. Qg4 {[%emt 0:02:15]} g6 {[%emt 0:00:07]} 8. h4 {[%emt 0:05:42]} ({Reject} 8. dxc5 Nxe5 9. Qd4 f6 $11) 8... h6 {[%emt 0:00:29]} 9. Bd3 {[%emt 0:05:29]} c4 {[%emt 0:04:17]} 10. Be2 {[%emt 0:04:11]} Qa5 {[%emt 0:04:14]} 11. Bd2 {[%emt 0:02:41]} Bd7 {[%emt 0:00:27]} 12. Qf4 {[%emt 0:01:20]} Rh7 {[%emt 0:01:19]} 13. g4 {[%emt 0:09:54]} O-O-O {[%emt 0:01:30]} 14. Qg3 {[%emt 0:05:20]} f6 {[%emt 0:15:30]} 15. f4 {[%emt 0:02:01]} Rf8 {[%emt 0:02:26]} 16. Nf3 {[%emt 0:03:41]} Nge7 {[%emt 0:09:52]} (16... h5 $15) 17. exf6 $11 {[%emt 0:17:08]} Rxf6 {[%emt 0:00:28]} 18. Ne5 {[%emt 0:10:43]} Rf8 {[%emt 0:14:57]} (18... Nxe5 $15 19. fxe5 Rff7) 19. Nxd7 {[%emt 0:10:23]} Kxd7 {[%emt 0:00:09]} 20. h5 {[%emt 0:00:10]} gxh5 {[%emt 0:12:57]} (20... Qc7 $11) 21. Rxh5 $14 {[%emt 0:00:23]} Qc7 {[%emt 0:05:58]} 22. Qh2 {[%emt 0:03:20]} Ng8 {[%emt 0:07:03]} 23. O-O-O {[%emt 0:04:04]} Nce7 {[%emt 0:02:45]} 24. Rf1 {[%emt 0:02:31]} Rg7 {[%emt 0:01:42]} 25. f5 {[%emt 0:02:15]} ({White should try} 25. Qh3 $14) 25... exf5 $11 {[%emt 0:03:20]} 26. Qxc7+ {[%emt 0:04:05]} Kxc7 {[%emt 0:00:06]} 27. gxf5 {[%emt 0:00:54]} Rgf7 {[%emt 0:00:40]} 28. Bxh6 {[%emt 0:01:23]} Nxh6 {[%emt 0:02:03]} 29. Rxh6 {[%emt 0:00:01]} Nxf5 {[%emt 0:01:23]} 30. Rg6 {[%emt 0:01:04]} Nd6 {[%emt 0:03:36]} 31. Rxf7+ {[%emt 0:00:31]} Rxf7 {[%emt 0:00:10][%mdl 4096] Endgame KRB-KRN} 32. Kb2 {[%emt 0:01:20]} Rf2 {[%emt 0:01:17]} 33. Bg4 {[%emt 0:00:31]} Ne4 {[%emt 0:01:20]} 34. Be6 {[%emt 0:01:10]} Rf6 {[%emt 0:00:34]} 35. Rxf6 {[%emt 0:02:11]} Nxf6 {[%emt 0:00:02] KB-KN} 36. Bf5 {[%emt 0:00:30]} Nh5 {[%emt 0:00:48]} 37. Bg4 {[%emt 0:00:40]} Ng3 {[%emt 0:00:16]} 38. Be6 {[%emt 0:00:23]} Kd6 {[%emt 0:00:14]} 39. Bc8 {[%emt 0:00:24]} b6 {[%emt 0:00:07]} 40. a4 {[%emt 0:00:30]} a5 {[%emt 0:00:09]} 41. Bg4 {[%emt 0:00:29]} Ke7 {[%emt 0:01:33]} 42. Bc8 {[%emt 0:00:22]} Ne4 {[%emt 0:00:42]} 43. Bb7 {[%emt 0:00:33]} Ke6 {[%emt 0:00:23]} 44. Bc8+ {[%emt 0:00:06]} Kd6 {[%emt 0:00:04]} 45. Bg4 {[%emt 0:00:30]} Nf2 {[%emt 0:00:17]} 46. Bf3 {[%emt 0:00:31]} Ke6 {[%emt 0:00:06]} 47. Kc1 {[%emt 0:00:44]} Ne4 {[%emt 0:00:35]} 48. Kb2 {[%emt 0:00:24]} Kf5 {[%emt 0:01:16]} 49. Bh5 {[%emt 0:00:21]} Kf4 {[%emt 0:00:22]} 50. Bf7 {[%emt 0:00:25]} Nf6 {[%emt 0:00:09]} 51. Be6 {[%emt 0:00:33]} Ke3 {[%emt 0:00:19]} 52. Bf7 {[%emt 0:00:48]} Kd2 {[%emt 0:01:37]} 53. Be6 {[%emt 0:00:12]} Ke2 {[%emt 0:05:34]} 54. Bf7 {[%emt 0:00:09]} (54. Kc1 $15) 54... Kd1 {[%emt 0:00:05]} 55. Be6 {[%emt 0:00:16]} Kd2 {[%emt 0:00:05]} 56. Bf7 {[%emt 0:00:09]} Ne4 {[%emt 0:00:21]} 57. Bxd5 {[%emt 0:00:14]} Nxc3 {[%emt 0:00:06]} 58. Bxc4 {[%emt 0:00:16] Threatens to win with Kb3.} Nxa4+ {[%emt 0:00:45]} 59. Kb3 {[%emt 0:01:04]} Nc3 {[%emt 0:00:17]} 60. d5 {[%emt 0:01:19]} Ne4 {[%emt 0:00:14]} 61. Bd3 {[%emt 0:01:58]} Nd6 {[%emt 0:00:30]} 0-1

[Event "29th Bosnjaci Open 2025"]
[Site "Bosnjaci"]
[Date "2025.01.06"]
[Round "6.16"]
[White "Valkovic, Kristian"]
[Black "Jusup, Matej"]
[Result "1/2-1/2"]
[ECO "D02"]
[WhiteElo "2033"]
[BlackElo "2238"]
[Annotator "TA"]
[PlyCount "80"]
[EventDate "2025.01.04"]
[EventType "swiss"]
[EventCountry "CRO"]
[SourceTitle "playchess.com"]
[Source "ChessBase"]
[SourceQuality "1"]
[TimeControl "5400+30"]

{[%evp 9,80,0,0,0,2,0,0,0,0,-14,-7,-18,-28,-68,-55,-64,-64,-66,-60,-59,-41,-45,-47,-41,-42,-46,-40,-70,-50,-60,-60,-79,-78,-72,-60,-60,-60,-60,-35,-60,-60,-60,-60,-60,-60,-60,-60,-60,-60,-60,-60,-62,-62,-62,-53,-62,-60,-60,-60,-62,-60,-62,108,93,137,129,135,116,171,170,152,104,136]} 1. d4 {[%emt 0:08:28]} d5 {[%emt 0:00:04]} 2. Nf3 {[%emt 0:00:05]} Nf6 {[%emt 0:00:14]} 3. Bf4 {[%emt 0:00:09]} c5 {[%emt 0:00:33]} 4. c3 {[%emt 0:00:03]} Qb6 {[%emt 0:00:50]} 5. Qc2 {[%emt 0:01:22]} g6 {[%emt 0:04:52]} 6. e3 {[%emt 0:07:10]} Nc6 {[%emt 0:03:29]} 7. h3 {[%emt 0:00:40]} Bf5 {[%emt 0:04:56]} 8. dxc5 {[%emt 0:00:57]} Qxc5 {[%emt 0:15:18]} 9. Bd3 {[%emt 0:05:40]} Bxd3 {[%emt 0:03:37]} 10. Qxd3 {[%emt 0:00:24]} Bg7 {[%emt 0:00:39]} 11. Ne5 {[%emt 0:12:21]} Nh5 {[%emt 0:13:12]} 12. Nxc6 $1 {[%emt 0:00:49] Strongly threatening Ne5.} Nxf4 {[%emt 0:00:34]} 13. exf4 {[%emt 0:00:14]} bxc6 {[%emt 0:00:16]} 14. Nd2 {[%emt 0:06:33]} Rb8 {[%emt 0:01:26]} 15. Rb1 {[%emt 0:03:34]} O-O {[%emt 0:04:55]} 16. O-O {[%emt 0:03:05]} Qd6 {[%emt 0:06:26]} 17. g3 {[%emt 0:04:37]} a5 {[%emt 0:03:10]} 18. Nf3 {[%emt 0:02:08]} c5 {[%emt 0:03:49]} 19. Rfe1 {[%emt 0:09:24]} c4 {[%emt 0:10:09]} 20. Qe2 {[%emt 0:02:51]} e6 {[%emt 0:00:28]} 21. Rbd1 {[%emt 0:00:16]} Qc6 {[%emt 0:01:28]} 22. Rd2 {[%emt 0:01:00]} Qa4 {[%emt 0:01:03]} 23. a3 {[%emt 0:00:21]} Qb5 {[%emt 0:00:37]} 24. Rc1 {[%emt 0:02:08]} Rb7 {[%emt 0:00:16]} 25. Rcc2 {[%emt 0:00:04]} Rfb8 {[%emt 0:00:22]} 26. Kg2 {[%emt 0:00:26]} Qe8 {[%emt 0:00:45]} 27. h4 {[%emt 0:04:47]} Rb6 {[%emt 0:01:53]} 28. Qe3 {[%emt 0:03:56]} Qc8 {[%emt 0:01:32]} 29. Kh2 {[%emt 0:01:06]} R8b7 {[%emt 0:00:40]} 30. Kg2 {[%emt 0:00:23]} Qb8 {[%emt 0:00:13][%cal Rb6b2]} 31. Qe2 {[%emt 0:00:04]} Rb3 {[%emt 0:00:52]} 32. Kh2 {[%emt 0:00:33]} Qf8 {[%emt 0:02:28]} 33. Qe3 {[%emt 0:00:39]} Bf6 {[%emt 0:00:17]} 34. Kg2 {[%emt 0:02:50]} R3b6 {[%emt 0:01:11]} 35. Ne5 {[%emt 0:02:50][%cal Oe5d7]} Be7 $2 {[%emt 0:03:49] [#]} (35... Qb8 $15 {stays ahead.}) 36. Nd7 $1 $16 {[%emt 0:03:41][%mdl 512] White is more active.} Qd8 {[%emt 0:00:40]} (36... Rxd7 37. Qxb6) 37. Nxb6 {[%emt 0:00:11]} Rxb6 {[%emt 0:01:48]} 38. h5 {[%emt 0:01:13]} Qc7 {[%emt 0:00:41]} (38... Qb8 $16 39. Re2 Rb5) 39. hxg6 {[%emt 0:01:09]} hxg6 {[%emt 0:00:12]} 40. Rd1 {[%emt 0:04:09]} (40. Qf3 $142) 40... Qb7 {[%emt 0:00:31]} 1/2-1/2

[Event "29th Bosnjaci Open 2025"]
[Site "Bosnjaci"]
[Date "2025.01.06"]
[Round "6.17"]
[White "Grgantov, Marin"]
[Black "Fridl, Miroslav"]
[Result "1-0"]
[ECO "B90"]
[WhiteElo "2191"]
[BlackElo "1992"]
[Annotator "TA"]
[PlyCount "119"]
[EventDate "2025.01.04"]
[EventType "swiss"]
[EventCountry "CRO"]
[SourceTitle "playchess.com"]
[Source "ChessBase"]
[SourceQuality "1"]
[TimeControl "5400+30"]

{[%evp 15,119,25,31,24,41,42,22,26,52,56,56,55,65,56,69,66,69,65,67,72,87,51,60,60,60,25,29,-25,-44,-44,-16,-69,8,9,71,11,135,134,160,160,155,146,171,161,161,146,199,199,199,126,257,254,246,201,254,247,228,94,111,89,121,126,118,111,124,121,123,120,121,122,138,85,149,152,242,169,245,231,275,218,256,252,7014,6933,5306,5214,6183,1761,1531,1492,12842,12837,29973,29974,29974,29975,29975,29976,29981,29982,29982,29983,29984,29984,29984,29985]} 1. e4 {[%emt 0:00:01]} c5 {[%emt 0:00:06]} 2. Nf3 {[%emt 0:00:05]} d6 {[%emt 0:00:03]} 3. d4 {[%emt 0:00:06]} cxd4 {[%emt 0:00:05]} 4. Nxd4 {[%emt 0:00:04]} Nf6 {[%emt 0:00:05]} 5. Nc3 {[%emt 0:00:04]} a6 {[%emt 0:00:03]} 6. Be3 {[%emt 0:00:05]} e5 {[%emt 0:00:28]} 7. Nf3 {[%emt 0:00:05]} h6 {[%emt 0:00:27]} 8. Bc4 {[%emt 0:01:31]} Be7 {[%emt 0:03:21]} 9. O-O {[%emt 0:00:06]} O-O {[%emt 0:00:22]} 10. Nh4 {[%emt 0:10:40]} Nc6 {[%emt 0:09:22]} 11. Ng6 {[%emt 0:06:10]} Na5 {[%emt 0:05:30]} 12. Nxe7+ {[%emt 0:07:57]} Qxe7 {[%emt 0:00:28]} 13. Nd5 {[%emt 0:01:46]} Nxd5 $1 {[%emt 0:00:41]} 14. Bxd5 {[%emt 0:00:06]} Be6 {[%emt 0:02:41]} 15. b3 {[%emt 0:05:34] Wards off Nc4} Rac8 {[%emt 0:06:14]} 16. c4 {[%emt 0:01:20]} Nc6 {[%emt 0:00:00]} 17. Qd2 {[%emt 0:02:52]} Nb8 {[%emt 0:02:59]} 18. Rad1 {[%emt 0:01:57]} Bxd5 {[%emt 0:00:35]} 19. Qxd5 {[%emt 0:01:16]} Rc6 {[%emt 0:01:05]} 20. f4 {[%emt 0:04:41]} Nd7 {[%emt 0:01:54]} 21. f5 {[%emt 0:00:54]} (21. fxe5 $142 Nxe5 22. h3) 21... Nf6 $11 {[%emt 0:00:43]} 22. Qd3 {[%emt 0:00:29]} Rfc8 {[%emt 0:01:13][%cal Ob7b5]} 23. Bf2 {[%emt 0:04:59]} (23. Rd2 $11) 23... Nh7 {[%emt 0:07:01]} (23... b5 $1 $15 24. cxb5 axb5) 24. a4 {[%emt 0:07:41]} b6 {[%emt 0:01:17]} (24... b5 $11 {keeps the balance.}) 25. Be1 {[%emt 0:04:54]} (25. Rfe1 $16) 25... a5 {[%emt 0:06:30]} (25... Nf6 $11) 26. Rf3 {[%emt 0:04:01]} f6 {[%emt 0:05:40]} 27. Qd2 {[%emt 0:00:41]} Ng5 {[%emt 0:08:05]} 28. Re3 {[%emt 0:01:33]} Kf8 {[%emt 0:03:36]} 29. h4 {[%emt 0:00:32]} Nf7 {[%emt 0:01:04]} 30. Rg3 {[%emt 0:01:28]} Nd8 {[%emt 0:00:15]} (30... Kg8 $16 31. Bf2 Kh7) 31. Bf2 $18 {[%emt 0:01:08]} Qf7 {[%emt 0:04:38]} 32. Rg6 {[%emt 0:04:10]} (32. Be3 $18 {[%cal Oe3h6] And now Bxh6! would win.} Qh5 33. Rg6) 32... Nb7 {[%emt 0:02:52]} (32... Ne6 $16) 33. Be3 {[%emt 0:00:33][%cal Oe3h6]} Ke7 {[%emt 0:00:29]} 34. Kf1 {[%emt 0:06:32]} Rf8 {[%emt 0:09:14]} 35. Ke2 {[%emt 0:03:56]} Kd7 {[%emt 0:00:09]} 36. Qe1 {[%emt 0:02:15]} (36. g4 $18) 36... Qe7 $16 {[%emt 0:01:46]} 37. Rd5 {[%emt 0:01:47] White has more active pieces.} Nc5 {[%emt 0:05:03]} 38. Bxc5 {[%emt 0:00:16]} Rxc5 {[%emt 0:00:04] Black is weak on the light squares} 39. Rd3 {[%emt 0:01:14]} Rf7 {[%emt 0:00:52]} 40. Qd1 {[%emt 0:01:02]} Kc7 {[%emt 0:00:30]} 41. Kf2 {[%emt 0:00:56]} Qd7 {[%emt 0:00:40]} 42. g4 {[%emt 0:03:03]} Rc6 {[%emt 0:01:37]} 43. g5 {[%emt 0:00:53]} ({White should play} 43. Rh3) 43... hxg5 {[%emt 0:00:07]} ({Black should play} 43... fxg5 44. Qh5 (44. hxg5 Rxf5+ 45. Rf3 Rxf3+ 46. Qxf3 Kb7 $11) 44... gxh4) 44. hxg5 {[%emt 0:00:00]} Qe7 {[%emt 0:00:46]} (44... Rc5 $16 45. Kg2 Qc6) 45. Rg3 {[%emt 0:00:32]} Kb8 {[%emt 0:02:33]} (45... d5 {is a better defense.}) 46. Qd5 $18 {[%emt 0:00:13]} Rc8 {[%emt 0:02:49]} 47. gxf6 $1 {[%emt 0:06:29]} gxf6 {[%emt 0:00:41] [#]} 48. Rg8 $1 {[%emt 0:00:04] Inhibits Ka7.} Rxg8 $2 (48... Rcf8 49. Qe6 Rxg8 50. Rxg8+ Ka7 51. Qxe7+ Rxe7) 49. Rxg8+ {[%mdl 4096] Endgame KQR-KQR} Rf8 {[#]} 50. Qe6 $1 Qd8 51. Rg7 {[%emt 0:01:31]} b5 {[%emt 0:05:56][%cal Bb6b5,Bb5a4,Ba4b3][%mdl 32]} 52. Kf3 {[%emt 0:00:27]} bxa4 {[%emt 0:00:26]} 53. c5 {[%emt 0:01:58][%cal Bc4c5,Bc5c6][%mdl 32]} Re8 {[%emt 0:02:20]} 54. Qf7 {[%emt 0:00:21][%csl Gg7][%cal Rf7b7]} (54. Qxd6+ $2 {too greedy.} Qxd6 55. cxd6 axb3 $19) 54... Re7 55. Qxe7 Qxe7 56. Rxe7 axb3 57. c6 {[%emt 0:01:30]} Kc8 {[%emt 0:01:17]} 58. Ke3 {[%emt 0:00:23]} a4 {[%emt 0:00:12]} 59. Rb7 {[%emt 0:00:13]} b2 {[%emt 0:00:13]} 60. Rxb2 {[%emt 0:00:05]} 1-0